{"text_format":"1","workbook":"xlsx","n_sheets":6,"sheets":["Бланк","выбор","Тех.мероприятия","Производители","Бригада","Выдающий"],"not_rendered":{"charts":0,"images":11,"macros":1,"external_links":0,"defined_names":3,"comments":0,"pivot_tables":0},"unopened":[],"bounds":{"document_bytes":16777216,"sheet_cells":100000,"rows_first":2000,"rows_last":500,"rows_between":2000,"halvings":0,"cell_chars":16384,"cell_head_chars":4096},"cells_cut":0,"cells_raw":0,"read":"whole","date_system":"1900"}

{"sheet":"Бланк","index":0,"n_rows":38,"n_cols":109,"rows_kept":38,"cut":false,"hidden":false,"merged":[[11,1,11,72],[12,33,12,72],[14,1,14,72],[17,1,17,41],[25,1,25,72],[18,1,18,72],[20,1,20,16],[15,1,15,72],[17,43,17,72],[33,3,34,5],[35,3,36,5],[37,3,38,5],[33,30,34,32],[35,30,36,32],[37,30,38,32],[28,31,28,51],[20,17,20,72],[23,1,23,26],[23,27,23,72],[32,3,32,55],[28,60,29,73],[30,60,31,73],[28,3,28,24],[2,1,2,10],[4,57,4,61],[6,1,6,12],[6,13,6,72],[10,1,10,72],[4,12,4,30],[4,32,4,37],[4,43,4,45],[4,50,4,53],[2,56,2,69],[2,42,2,53],[2,12,2,24],[9,1,9,16],[9,18,9,72]]}
[null,null,null,null,null,null,null,null,null,null,null,null,null,null,null,null,null,null,null,null,null,null,null,null,null,null,null,null,null,null,null,null,null,null,null,null,null,null,null,null,null,null,null,null,null,"Для работы в электроустановках"]
[]
[null,"Предприятие ",null,null,null,null,null,null,null,null,null,null,null,null,null,null,null,null,null,null,null,null,null,null,null,null,null,null,null,null,null,null,null,null,null,null,null,null,null,null,null,null,"Подразделение",null,null,null,null,null,null,null,null,null,null,null,null,null,"ЭЦ"]
[]
[null,null,null,null,null,null,null,null,null,null,null,null,"РАСПРОРЯЖЕНИЕ  №",null,null,null,null,null,null,null,null,null,null,null,null,null,null,null,null,null,null,null,null,null,null,null,null,null,null,"от «",null,null,null,{"$f":"MID(BI31,1,FIND(\".\",BI31)-1)","v":"9"},null,null,"»",null,null,null,{"$f":"MID(BI31,FIND(\".\",BI31)+1,2)","v":"12"},null,null,null,null,null,null,{"$f":"MID(MID(BI31,FIND(\".\",BI31)+1,8),FIND(\".\",MID(BI31,FIND(\".\",BI31)+1,8))+1,4)","v":"2016"},null,null,null,null,null,null,null,null,null,null,null,null,null,null,null,null,null,null,null,null,null,null,null,null,null,null,null,null,null,null,null,null,null,null,null,null,null,null,null,null,null,null,null,null,null,null,null,null,null,null,"дата"]
[]
[null,"Производителю ",null,null,null,null,null,null,null,null,null,null,null,"Гисматулину А. Р., гр.3"]
[null,"(Ф.И.О., гр. по эл.безопасности, подпись производителя работ о получении целевого инструктажа от лица, выдавшего распоряжение) "]
[]
[null,"с бригадой в составе:",null,null,null,null,null,null,null,null,null,null,null,null,null,null,null,null,{"$f":"MID(Бригада!F9,1,70-MATCH(\" *\",RIGHT(MID(Бригада!F9,1,70),ROW(B1:B71)),0)+1)","v":"Бабинцев Д.А.,гр.3; Бабинцев Д.А.,гр.3; Бабинцев Д.А.,гр.3; Бабинцев "}]
[null,{"$f":"SUBSTITUTE(Бригада!F9,S10,\"\")","v":"Д.А.,гр.3; Бабинцев Д.А.,гр.3; Бабинцев Д.А.,гр.3;"}]
[]
[null,"Поручается произвести следующие работы"]
[null,null,null,null,null,null,null,null,null,null,null,null,null,null,null,null,null,null,null,null,null,null,null,null,null,null,null,null,null,null,null,null,null,null,null,null,null,null,null,null,null,null,"(место и наименование работы) "]
[]
[]
[null,"Технические мероприятия по обеспечению безопасности работ"]
[null,"с указанием необходимых отключений",null,null,null,null,null,null,null,null,null,null,null,null,null,null,null,null,null,null,null,null,null,null,null,null,null,null,null,null,null,null,null,null,null,null,null,null,null,null,null,null,":",{"$f":"MID(Тех.мероприятия!E2,1,40-MATCH(\" *\",RIGHT(MID(Тех.мероприятия!E2,1,40),ROW(AA$1:AA$42)),0)+1)","v":"отключить АВ    питания "}]
[null,{"$f":"SUBSTITUTE(Тех.мероприятия!E2,Бланк!AR18,\"\")","v":"электродвигателя 4GCP90AP001. "}]
[]
[null,"Распоряжение выдал",null,null,null,null,null,null,null,null,null,null,null,null,null,null,null,"Предеин Е.А., гр.5"]
[null,null,null,null,null,null,null,null,null,null,null,null,null,null,null,null,null,null,null,"(Ф.И.О., гр. по электробезопасности, подпись о проведении целевого инструктажа производителю работ)"]
[]
[null,"Оперативный персонал других цехов"]
[null,null,null,null,null,null,null,null,null,null,null,null,null,null,null,null,null,null,null,null,null,null,null,null,null,null,null,null,null,null,null,null,null,null,null,null,null,null,null,null,null,"(название цеха, должность, фамилия, подпись)"]
[]
[]
[]
[null,null,null,"Производителю",null,null,null,null,null,null,null,null,null,null,null,null,null,null,null,null,null,null,null,null,null,null,null,null,null,null,null,"Выдающий распоряжение",null,null,null,null,null,null,null,null,null,null,null,null,null,null,null,null,null,null,null,null,null,null,null,null,null,null,null,null,"Дата"]
[]
[null,null,null,null,null,null,null,null,null,null,null,null,null,null,null,null,null,null,null,null,null,null,null,null,null,null,null,null,null,null,null,null,null,null,null,null,null,null,null,null,null,null,null,null,null,null,null,null,null,null,null,null,null,null,null,null,null,null,null,null,"9.12.2016"]
[]
[null,null,null,"Члены бригады"]
[null,null,null,1,null,null,null,null,null,null,null,null,null,null,null,null,null,null,null,null,null,null,null,null,null,null,null,null,null,null,2]
[]
[null,null,null,3,null,null,null,null,null,null,null,null,null,null,null,null,null,null,null,null,null,null,null,null,null,null,null,null,null,null,4]
[]
[null,null,null,5,null,null,null,null,null,null,null,null,null,null,null,null,null,null,null,null,null,null,null,null,null,null,null,null,null,null,6]

{"sheet":"выбор","index":1,"n_rows":32,"n_cols":20,"rows_kept":32,"cut":false,"hidden":false,"merged":[]}
[null,null,null,"предприятие"]
[null,null,null,"подразделени",null,null,null,null,null,null,null,null,null,null,null,null,null,1,"январь",1999]
[null,null,null,"день","6","месяц","май","год","2016",null,null,null,null,null,null,null,null,2,"февраль",2000]
[null,null,null,"распоряжение №",null,null,null,null,null,null,null,null,null,null,null,null,null,3,"март",2001]
[null,null,null,"производителю",null,null,null,null,null,null,null,null,null,null,null,null,null,4,"апрель",2002]
[null,null,null,"с бригадой в составе",null,null,null,null,null,null,null,null,null,null,null,null,null,5,"май",2003]
[null,null,null,"поручается произвести следующие работы",null,null,null,null,null,null,null,null,null,null,null,null,null,6,"июнь",2004]
[null,null,null,"технические мерпоприятия",null,null,null,null,null,null,null,null,null,null,null,null,null,7,"июль",2005]
[null,null,null,"распоряжение выдал",null,null,null,null,null,null,null,null,null,null,null,null,null,8,"август",2006]
[null,null,null,"оперативный персонал других цехов",null,null,null,null,null,null,null,null,null,null,null,null,null,9,"сентябрь",2007]
[null,null,null,null,null,null,null,null,null,null,null,null,null,null,null,null,null,10,"октябрь",2008]
[null,null,null,null,null,null,null,null,null,null,null,null,null,null,null,null,null,11,"ноябрь",2009]
[null,null,null,null,null,null,null,null,null,null,null,null,null,null,null,null,null,12,"декабрь",2010]
[null,null,null,null,null,null,null,null,null,null,null,null,null,null,null,null,null,13,null,2011]
[null,null,null,null,null,null,null,null,null,null,null,null,null,null,null,null,null,14,null,2012]
[null,null,null,null,null,null,null,null,null,null,null,null,null,null,null,null,null,15,null,2013]
[null,null,null,null,null,null,null,null,null,null,null,null,null,null,null,null,null,16,null,2014]
[null,null,null,null,null,null,null,null,null,null,null,null,null,null,null,null,null,17,null,2015]
[null,null,null,null,null,null,null,null,null,null,null,null,null,null,null,null,null,18,null,2016]
[null,null,null,null,null,null,null,null,null,null,null,null,null,null,null,null,null,19,null,2017]
[null,null,null,null,null,null,null,null,null,null,null,null,null,null,null,null,null,20,null,2018]
[null,null,null,null,null,null,null,null,null,null,null,null,null,null,null,null,null,21,null,2019]
[null,null,null,null,null,null,null,null,null,null,null,null,null,null,null,null,null,22,null,2020]
[null,null,null,null,null,null,null,null,null,null,null,null,null,null,null,null,null,23,null,2021]
[null,null,null,null,null,null,null,null,null,null,null,null,null,null,null,null,null,24]
[null,null,null,null,null,null,null,null,null,null,null,null,null,null,null,null,null,25]
[null,null,null,null,null,null,null,null,null,null,null,null,null,null,null,null,null,26]
[null,null,null,null,null,null,null,null,null,null,null,null,null,null,null,null,null,27]
[null,null,null,null,null,null,null,null,null,null,null,null,null,null,null,null,null,28]
[null,null,null,null,null,null,null,null,null,null,null,null,null,null,null,null,null,29]
[null,null,null,null,null,null,null,null,null,null,null,null,null,null,null,null,null,30]
[null,null,null,null,null,null,null,null,null,null,null,null,null,null,null,null,null,31]

{"sheet":"Тех.мероприятия","index":2,"n_rows":13,"n_cols":10,"rows_kept":13,"cut":false,"hidden":false,"merged":[]}
["KKS","Ремонтируемый механизм","место","питание","отключения","дополнительные мероприятия","вид ремонта 1","вид ремонта 2","вид ремонта 3","вид ремонта 4"]
["4GCP90AP001","электродвигателя","ОВК.","Сборка LL11R04 шк.1             ","отключить АВ    питания электродвигателя 4GCP90AP001. "," Вывесить плакаты.   ","текущий ","капитальный","техническое обслуживание","поиск и устранение дефекта"]
["4JЕV10AP001","электродвигателя","1UBR12 252. ","Сборка 4BNS00GE111 блок 9B1 ","отключить АВ электродвигателя 4JЕV10AP001 и выкатить в ремонтное положение. Закрыть задвижки подачи, слива масла в маслостанцию . "," Вывесить плакаты.   "]
["4JЕV10AP002","электродвигателя","1UBR12 252. ","Сборка 4BNS00GE131 блок 11B","отключить АВ электродвигателя 4JЕV10AP002 и выкатить в ремонтное положение. Закрыть задвижки подачи, слива масла в маслостанцию . "," Вывесить плакаты.   "]
["4JЕV10AP003","электродвигателя","1UBR12 252. ","Сборка 4BNS00GE131 блок 11С","отключить АВ электродвигателя 4JЕV10AP003 и выкатить в ремонтное положение. Закрыть задвижки подачи, слива масла в маслостанцию . "," Вывесить плакаты.   "]
["4JЕV20AP001","электродвигателя","2UBR12 112. ","Сборка 4BNS00GE331 блок 9B","отключить АВ электродвигателя 4JЕV20AP001 и выкатить в ремонтное положение. Закрыть задвижки подачи, слива масла в маслостанцию . "," Вывесить плакаты.   "]
["4JЕV20AP002","электродвигателя","2UBR12 112. ","Сборка 4BNS00GE331 блок 9B","отключить АВ электродвигателя 4JЕV20AP002 и выкатить в ремонтное положение. Закрыть задвижки подачи, слива масла в маслостанцию . "," Вывесить плакаты.   "]
["4JЕV20AP003","электродвигателя","2UBR12 112. ","Сборка 4BNS00GE331 блок 9C","отключить АВ электродвигателя 4JЕV30AP001 и выкатить в ремонтное положение. Закрыть задвижки подачи, слива масла в маслостанцию . "," Вывесить плакаты.   "]
["4JЕV30AP001","электродвигателя","2UBR12 111. ","Сборка 4BNS00GE511 блок 10A","отключить АВ электродвигателя 4JЕV30AP001 и выкатить в ремонтное положение. Закрыть задвижки подачи, слива масла в маслостанцию . "," Вывесить плакаты.   "]
["4JЕV30AP002","электродвигателя","2UBR12 111. ","Сборка 4BNS00GE531 блок 2B","отключить АВ электродвигателя 4JЕV30AP002 и выкатить в ремонтное положение. Закрыть задвижки подачи, слива масла в маслостанцию . "," Вывесить плакаты.   "]
["4JЕV30AP003","электродвигателя","2UBR12 111. ","Сборка 4BNS00GE511 блок 10A","отключить АВ электродвигателя 4JЕV30AP003 и выкатить в ремонтное положение. Закрыть задвижки подачи, слива масла в маслостанцию . "," Вывесить плакаты.   "]
["4SAA14AH001","электродвигателей","1UBR27 122. ","Секция 4BNА03 бл.5 ","Отключить  АВ шкафа САУ  4SAA14GH101 и выкатить в ремонтное  положение. ","Снять Приводные ремни. Вывесить плакаты. Допуск производить  с разрешения оперативного персонала  ЦВ. "]
["4SAA14AH001","шкафа САУ","1UBR27 122. ","Секция 4BNА03 бл.6","Отключить  АВ шкафа САУ  4SAA14GH101 и выкатить в ремонтное  положение. "," Вывесить плакаты.   "]

{"sheet":"Производители","index":3,"n_rows":10,"n_cols":4,"rows_kept":10,"cut":false,"hidden":false,"merged":[]}
["Производители работ","Производители работ","группа по электробезопасности","Производители работ для печати в бланк"]
["Бабинцев Денис Александрович","Бабинцеву Д. А.","гр.3",{"$f":"B2&\", \"&C2","v":"Бабинцеву Д. А., гр.3"}]
["Гисматулин Альберт Рашитович","Гисматулину А. Р.","гр.3",{"$f":"B3&\", \"&C3","v":"Гисматулину А. Р., гр.3"}]
["Гобов Иван Викторович","Гобову И. В.","гр.3","Гобову И. В., гр.3"]
["Грицутин Антон Иванович","Грицутину А. И.","гр.3","Грицутину А. И., гр.3"]
["Давыдов Анатолий Николаевич","Давыдову А. Н.","гр.3","Давыдову А. Н., гр.3"]
["Корнильцев Алексей Геннадьевич","Корнильцеву А. Г.","гр.3","Корнильцеву А. Г., гр.3"]
["Кузин Евгений Анатольевич","Кузину Е. А.","гр.3","Кузину Е. А., гр.3"]
["Михайличенко Петр Петрович","Михайличенко П. П.","гр.3","Михайличенко П. П., гр.3"]
["Шилов Иван Сергеевич","Шилову И. С.","гр.3","Шилову И. С., гр.3"]

{"sheet":"Бригада","index":4,"n_rows":16,"n_cols":6,"rows_kept":16,"cut":false,"hidden":false,"merged":[]}
["Члены бригады","Члены бригады","группа по электробезопасности","Члены бригады для печати в бланк",null,"Члены выбранные в бригаду выдающим распоряжение"]
["Бабинцев Денис Александрович","Бабинцеву Д. А.","гр.3","Бабинцев Д.А.,гр.3;",null,"Бабинцев Д.А.,гр.3;"]
["Гисматулин Альберт Рашитович","Гисматулину А. Р.","гр.3","Гисматулин А.Р.,гр.3;",null,"Бабинцев Д.А.,гр.3;"]
["Гобов Иван Викторович","Гобову И. В.","гр.3","Гобов И.В.,гр.3;",null,"Бабинцев Д.А.,гр.3;"]
["Грицутин Антон Иванович","Грицутину А. И.","гр.3","Грицутин А.И.,гр.3;",null,"Бабинцев Д.А.,гр.3;"]
["Давыдов Анатолий Николаевич","Давыдову А. Н.","гр.3","Давыдов А.Н.,гр.3;",null,"Бабинцев Д.А.,гр.3;"]
["Корнильцев Алексей Геннадьевич","Корнильцеву А. Г.","гр.3","Корнильцев А.Г.,гр.3;",null,"Бабинцев Д.А.,гр.3;"]
["Кузин Евгений Анатольевич","Кузину Е. А.","гр.3","Кузин Е.А.,гр.3;"]
["Михайличенко Петр Петрович","Михайличенко П. П.","гр.3","Михайличенко П.П.,гр.3;",null,{"$f":"F2&\" \"&F3&\" \"&F4&\" \"&F5&\" \"&F6&\" \"&F7","v":"Бабинцев Д.А.,гр.3; Бабинцев Д.А.,гр.3; Бабинцев Д.А.,гр.3; Бабинцев Д.А.,гр.3; Бабинцев Д.А.,гр.3; Бабинцев Д.А.,гр.3;"}]
["Шилов Иван Сергеевич","Шилову И. С.","гр.3","Шилов И.С.,гр.3;",null,"овечкин краснов кровин лененгес ленивец неленивец трудоголик полные трудоголики выфаааааафвыаааааааааааааааааааааааааааааааааааааааааааааааааааааааааааааааааааааааааааааааааааааааа"]
[]
[]
[]
[]
[]
[null,null,null,null,null," =ПСТР(CB10;1;61-ПОИСКПОЗ(\" *\";ПРАВСИМВ(ПСТР(CB10;1;61);СТРОКА(B10:BU12)-20);)+1)"]

{"sheet":"Выдающий","index":5,"n_rows":4,"n_cols":4,"rows_kept":4,"cut":false,"hidden":false,"merged":[]}
["Выдающий наряд","Выдающий наряд","группа по электробезопасности"]
["Осинцев Денис Николаевич","Осинцев Д.Н.","гр.5",{"$f":"B2&\", \"&C2","v":"Осинцев Д.Н., гр.5"}]
["Краснов Эдуард Евгеньвич","Краснов Э.Е.","гр.5",{"$f":"B3&\", \"&C3","v":"Краснов Э.Е., гр.5"}]
["Предеин Евгений Анатольвич","Предеин Е.А.","гр.5",{"$f":"B4&\", \"&C4","v":"Предеин Е.А., гр.5"}]